Cogmind - Beta 13 @@@ ROGUE MODE // 2024.05.02 @ 17:21:28 Player: Barbarossa Result: Destroyed by G-47 Trooper with Particle Gun Performance ------------- Evolutions (2) 1000 Regions Visited (3) 600 Robots Destroyed (16) 80 Value Destroyed (304) 304 Prototype IDs (1) 20 Alien Tech Used (0) 0 Bonus (0) 0 TOTAL SCORE: 2004 Bonus ------- None Cogmind --------- Core Integrity 0/550 Matter 278/300 Energy 100/100 System Corruption 0% Temperature Cool (47) Movement Core (50) Location -8/Materials Parts ------- > --- POWER (1) -------- (None) > --- PROPULSION (4) --- (None) > --- UTILITY (4) ------ Signal Interpreter > --- WEAPON (2) ------- Light Assault Rifle > --- INVENTORY (5) ---- Light Treads Light Treads Wheel Cooling System Peak State ------------ > --- POWER ------------ (None) > --- PROPULSION ------- (None) > --- UTILITY ---------- Heat Sink Cooling System Signal Interpreter Hacking Suite > --- WEAPON ----------- Pulse Rifle > --- INVENTORY -------- Light Treads Light Treads Wheel [Rating: 10] Favorites ----------- Power Light Ion Engine Engine Light Ion Engine Power Core Light Nuclear Core Propulsion Flight Unit Leg Aluminum Leg Wheel Wheel Flight Unit Flight Unit Utility Signal Interpreter Device Heat Sink Storage Small Storage Unit Processor Signal Interpreter Hackware Hacking Suite Weapon Small Laser Energy Gun Small Laser Ballistic Gun Light Assault Rifle Build | -11 -10 -9 -8 ------- Run | Yrd Mat Mat Mat Slots Evolved 4 | . . 2 2 Power . | . . . . Propulsion 2 | . . 1 1 Utility 2 | . . 1 1 Weapon . | . . . . Parts Attached 21 | . 8 2 11 Power 2 | . 1 . 1 Engine 1 | . 1 . . Core 1 | . . . 1 Reactor . | . . . . Propulsion 7 | . 6 1 . Treads . | . . . . Leg . | . . . . Wheel 2 | . 2 . . Hover . | . . . . Flight 5 | . 4 1 . Utility 5 | . . . 5 Device 3 | . . . 3 Storage . | . . . . Processor 1 | . . . 1 Hackware 1 | . . . 1 Protection . | . . . . Artifact . | . . . . Weapon 7 | . 1 1 5 Energy Gun 4 | . . . 4 Energy Cannon . | . . . . Ballistic Gun 3 | . 1 1 1 Ballistic Cannon . | . . . . Launcher . | . . . . Special Weapon . | . . . . Impact Weapon . | . . . . Slashing Weapon . | . . . . Piercing Weapon . | . . . . Special Melee Weapon . | . . . . Unidentified Prototypes 1 | . . . 1 Parts Lost 16 | . 1 7 8 Power 2 | . . 1 1 Propulsion 4 | . 1 3 . Utility 3 | . . . 3 Weapon 7 | . . 3 4 Highest Loss Streak 7 | . 1 7 6 To Critical Strikes . | . . . . Average Slot Usage (%) 45 | . 74 22 31 Engine 6 | . 14 3 . Leg 1 | . 5 . . Wheel 4 | . 12 . . Flight 6 | . 10 9 . Device 2 | . . . 7 Storage 3 | . 9 . . Processor 3 | . . . 8 Hackware 2 | . . . 6 Energy Gun 10 | . 16 3 7 Ballistic Gun 3 | . 5 4 . Naked Turns 87 | . . 73 14 Heaviest Build 13 | 13 13 5 8 Greatest Support 20 | 20 20 12 3 Greatest Overweight (x) 2 | . 1 . 2 Average Overweight (x) . | . . . . Largest Inventory Capacity 8 | . 8 5 5 Average Capacity 5 | . 7 5 5 Most Carried 8 | . 8 4 5 Average Carried 4 | . 6 3 3 Final Capacity 8 | 8 5 5 5 Final Carried 6 | 6 5 3 4 Class Distribution -------------------- 94% | Mutant 5% | Scavenger-Mutant Dominant Class ---------------- Mutant | -10/Materials Mutant | -9/Materials Mutant | -8/Materials Resources | -11 -10 -9 -8 ----------- Run | Yrd Mat Mat Mat Matter Collected 301 | 200 . 29 72 Remotely . | . . . . Salvage Created 369 | . 95 45 229 Parts 27 | . 10 5 12 Haulers Intercepted . | . . . . Recyclers Shooed . | . . . . Parts Field Recycled . | . . . . Retrieved Matter . | . . . . Parts Self-Destructed . | . . . . Prevented . | . . . . Kills | -11 -10 -9 -8 ------- Run | Yrd Mat Mat Mat Combat Hostiles Destroyed 16 | . 6 3 7 Guns 16 | . 6 3 7 Classes Destroyed 3 | . 1 . 2 Swarmer 12 | . 6 3 3 Grunt 2 | . . . 2 Sentry 2 | . . . 2 Best Kill Streak 3 | . 3 2 3 Combat Bots Only 3 | . 3 2 3 Max Kills in Single Turn 1 | . 1 1 1 Gunslinging . | . . . . Exploded . | . . . . Melee . | . . . . Uniques/NPCs Destroyed . | . . . . Combat | -11 -10 -9 -8 -------- Run | Yrd Mat Mat Mat Hostile Shots Fired 227 | . 18 101 108 Missed 61 | . 7 29 25 Damage Taken 1930 | . 114 716 1100 Core 986 | . 44 382 560 Absorbed by Shields . | . . . . Core Remaining (%) 62 | 100 82 4 . Volleys Fired 73 | . 19 15 39 Largest 2 | . 2 2 2 Hottest 112 | . 90 60 112 Shots Fired 94 | . 31 23 40 Gun 94 | . 31 23 40 Cannon . | . . . . Launcher . | . . . . Special . | . . . . Kinetic 20 | . 6 12 2 Thermal 74 | . 25 11 38 Explosive . | . . . . Electromagnetic . | . . . . Robot Hit Streak 13 | . 6 4 13 Robot Miss Streak 7 | . 3 7 3 Penetration Max . | . . . . Secondary Targets 2 | . 1 1 . Max Gunslinging Chain 1 | . 1 1 . Shots Hit Robots 52 | . 16 8 28 Core Hits 28 | . 8 7 13 Critical Kills . | . . . . Critical Parts Destroyed . | . . . . Critical Strikes 2 | . 1 . 1 Burn 2 | . 1 . 1 Melee Attacks . | . . . . Impact . | . . . . Slashing . | . . . . Piercing . | . . . . Sneak Attacks . | . . . . Combat Hostiles . | . . . . Follow-up Attacks . | . . . . Damage Inflicted 777 | . 166 131 480 Guns 763 | . 166 117 480 Cannons . | . . . . Explosions . | . . . . Melee . | . . . . Ramming 14 | . . 14 . Kinetic 92 | . 23 62 7 Thermal 671 | . 143 55 473 Explosive . | . . . . Electromagnetic . | . . . . Impact . | . . . . Slashing . | . . . . Piercing . | . . . . Highest Corruption 2 | . . 2 . Average Corruption 2 | . . 2 . Corruption Purged . | . . . . Corruption Blocked . | . . . . Effects 1 | . . 1 . Message Errors 1 | . . 1 . Overload Shots . | . . . . Overflow Damage . | . . . . Projectiles . | . . . . Explosions . | . . . . Melee . | . . . . Knockbacks 1 | . . 1 . Impact 1 | . . 1 . Kinetic . | . . . . Secondary . | . . . . Self-Inflicted Damage 5 | . . 5 . Shots . | . . . . Rammed 9 | . . 9 . Targets Rammed 9 | . . 9 . Kicked . | . . . . Crushed . | . . . . Highest Temperature 180 | . 180 96 123 Average Temperature 56 | . 67 47 51 Received Heat Transfer 723 | . . 201 522 Siege Activations . | . . . . Robots Corrupted . | . . . . Combat Hostiles . | . . . . Parts Fried . | . . . . Impact Corruptions . | . . . . Robots Melted . | . . . . Combat Hostiles . | . . . . Parts Melted 2 | . 1 . 1 Heat Transferred 1682 | . 447 125 1110 Parts Sabotaged . | . . . . Parts Stolen . | . . . . Parts Stripped . | . . . . Power Chain Reactions . | . . . . Alert | -11 -10 -9 -8 ------- Run | Yrd Mat Mat Mat Peak Influence 205 | . 205 126 199 Initial 86 | . . 86 44 Average 106 | . 119 84 105 Maximum Alert Level 1 | . 1 . . Low Security (%) 94 | . 84 100 100 Level 1 5 | . 15 . . Level 2 . | . . . . Level 3 . | . . . . Level 4 . | . . . . Level 5 . | . . . . High Security . | . . . . Max Security . | . . . . Squads Dispatched 3 | . 2 1 . Investigation 1 | . . 1 . Extermination . | . . . . Reinforcement 2 | . 2 . . Assault . | . . . . Garrison . | . . . . Intercept . | . . . . Searches Triggered . | . . . . Construction Impeded . | . . . . Haulers Reinforced . | . . . . Active Scanning Responses . | . . . . Cargo Convoy Interrupts . | . . . . Stealth | -11 -10 -9 -8 --------- Run | Yrd Mat Mat Mat Distress Signals 1 | . 1 . . Communications Jammed . | . . . . Distress Signals . | . . . . Times Spotted 29 | . 14 6 9 Peak Tracking Total 6 | . 5 6 5 Tactical Retreats 4 | . 1 1 2 Traps | -11 -10 -9 -8 ------- Run | Yrd Mat Mat Mat Traps Triggered 3 | . 1 2 . Indirectly . | . . . . Trap Hack Attempts . | . . . . Triggered . | . . . . Disarmed . | . . . . Reprogrammed . | . . . . Reused . | . . . . Traps Extracted . | . . . . Installed . | . . . . Triggered . | . . . . Machines | -11 -10 -9 -8 ---------- Run | Yrd Mat Mat Mat Machines Disabled . | . . . . Max in Single Turn . | . . . . Machines Repaired . | . . . . Machines Dismantled . | . . . . Machines Sabotaged . | . . . . Overloaded Fab Kills . | . . . . Hacking | -11 -10 -9 -8 --------- Run | Yrd Mat Mat Mat Machines Accessed . | . . . . Terminals . | . . . . Fabricators . | . . . . Repair Stations . | . . . . Recycling Units . | . . . . Scanalyzers . | . . . . Garrison Access . | . . . . Total Hacks . | . . . . Successful . | . . . . Failed . | . . . . Catastrophic . | . . . . Database Lockouts . | . . . . Manual . | . . . . Terminals . | . . . . Fabricators . | . . . . Repair Stations . | . . . . Recycling Units . | . . . . Scanalyzers . | . . . . Garrison Access . | . . . . Terminal Hacks . | . . . . Fabricator Hacks . | . . . . Repair Station Hacks . | . . . . Recycling Unit Hacks . | . . . . Scanalyzer . | . . . . Garrison Access Hacks . | . . . . Unauthorized Hacks . | . . . . Terminals . | . . . . Fabricators . | . . . . Repair Stations . | . . . . Recycling Units . | . . . . Scanalyzers . | . . . . Garrison Access . | . . . . Data Cores Recovered . | . . . . Used . | . . . . Hacking Detections . | . . . . Full Trace Events . | . . . . Feedback Events . | . . . . Feedback Blocked . | . . . . Robot Schematics Acquired . | . . . . Robots Built . | . . . . Authchips . | . . . . Time . | . . . . Total Robot Build Rating . | . . . . Part Schematics Acquired . | . . . . Parts Built . | . . . . Authchips . | . . . . Time . | . . . . Total Part Build Rating . | . . . . Parts Repaired . | . . . . Time . | . . . . Parts Recycled . | . . . . Recycled Matter . | . . . . Retrieved Matter . | . . . . Retrieved Components . | . . . . Parts Scanalyzed . | . . . . Part Schematics Acquired . | . . . . Parts Damaged . | . . . . Bothacking | -11 -10 -9 -8 ------------ Run | Yrd Mat Mat Mat Used RIF Installer . | . . . . Robots Hacked . | . . . . Non-combat . | . . . . Combat . | . . . . Robot Hacks Applied . | . . . . Relay Couplers Released . | . . . . Fabnet Peak Effective % . | . . . . Robots Rewired . | . . . . Allies Hacked . | . . . . Hacks Repelled . | . . . . Allies | -11 -10 -9 -8 -------- Run | Yrd Mat Mat Mat Total Allies . | . . . . Largest Group . | . . . . Highest-Rated Group . | . . . . Highest-Rated Ally . | . . . . Total Orders . | . . . . Ally Attacks . | . . . . Total Damage . | . . . . Kills . | . . . . Allies Corrupted . | . . . . Allies Melted . | . . . . Intel | -11 -10 -9 -8 ------- Run | Yrd Mat Mat Mat Robot Analysis Total . | . . . . Derelict Logs Recovered . | . . . . Drone Launches . | . . . . Drone Recoveries . | . . . . Exploration | -11 -10 -9 -8 ------------- Run | Yrd Mat Mat Mat Turns Passed 591 | . 228 131 232 Spaces Moved 585 | 1 262 188 134 Core 264 | . . 130 134 Treads . | . . . . Legs 18 | 1 17 . . Wheels 83 | . 83 . . Hover . | . . . . Flight 220 | . 162 58 . Fastest Speed 34 | 120 37 34 50 Average Speed 56 | 120 58 45 69 Slowest Speed 150 | 120 120 50 150 Overloaded Moves . | . . . . Propulsion Burnouts . | . . . . Robots Hopped 5 | . 5 . . Cave-ins Triggered . | . . . . Exploration Rate (%) 21 | 2 50 23 10 Regions Visited 3 Branch Regions . Pre-discovered Areas . | . . . . Known Exits Taken . | . . . . Unknown Exits Taken 3 | 1 1 1 . Scrap Searched . | . . . . Spaces Dug . | . . . . Terrain Destroyed . | . . . . Melee . | . . . . Projectile . | . . . . AOE . | . . . . Terrain Rammed . | . . . . Walls Destroyed . | . . . . Machines Disabled . | . . . . Actions | -11 -10 -9 -8 --------- Run | Yrd Mat Mat Mat Total 747 | . 302 213 232 Wait 46 | . 4 . 42 Move 574 | . 253 187 134 Hop 3 | . 3 . . Pick Up 11 | . 6 . 5 Fast Attach 7 | . 1 . 6 Attach 9 | . 2 2 5 Detach 2 | . 1 . 1 Swap 5 | . 5 . . Drop 8 | . 8 . . Fire 73 | . 19 15 39 Melee . | . . . . Ram 9 | . . 9 . Kick . | . . . . Crush . | . . . . Escape Stasis . | . . . . Rewire . | . . . . Trap . | . . . . Miscellaneous . | . . . . Route ------- -11/Scrapyard -10/Materials (discovered 2 exits: [*Mat] / [*Min]) -9/Materials -8/Materials History --------- Turn | Location | Event 1 | -11/Scrapyard | Discovered new exit (range 0) 1 | -11/Scrapyard | Entered Materials 72 | -10/Materials | Discovered new exit (range 15) 223 | -10/Materials | Discovered new exit (range 10) 229 | -10/Materials | Entered another Materials area 229 | -9/Materials | Evolved 2 slots: Propulsion x1, Utility x1 288 | -9/Materials | Core integrity fell below 50% 318 | -9/Materials | Lost 7 parts (1p3n3w) 333 | -9/Materials | Core integrity fell below 20% 352 | -9/Materials | Discovered new exit (range 15) 360 | -9/Materials | Entered another Materials area 360 | -8/Materials | Evolved 2 slots: Propulsion x1, Utility x1 527 | -8/Materials | Core integrity fell below 50% 563 | -8/Materials | Core integrity fell below 20% 586 | -8/Materials | Build established: Mutant 592 | -8/Materials | Destroyed by G-47 Trooper with Particle Gun Last Messages --------------- 00543_ Hacking Suite destroyed. 00545_ Imp. Medium Laser destroyed. 00546_ Acquired Imp. Medium Laser. 00560_ Imp. Medium Laser destroyed. 00561_ G-47 Trooper destroyed. 00562_ R-06 Scavenger collects Lgt. Assault Rifle. 00562_ Heat Sink destroyed. 00565_ Acquired Lgt. Nuclear Core. 00571_ G-47 Trooper destroyed. 00574_ Critical hit (Burn: +37). 00575_ R-06 Scavenger collects Imp. Heat Sink. 00575_ Lgt. Assault Rifle melted. 00575_ S-10 Pest destroyed. 00579_ R-06 Scavenger collects Particle Gun. 00583_ R-06 Scavenger collects Imp. Heat Sink. 00586_ Imp. Medium Laser destroyed. 00587_ R-06 Scavenger collects Aluminum Leg. 00588_ Acquired Lgt. Assault Rifle. 00590_ Lgt. Nuclear Core destroyed. Map ----- +----------------------------------------------------+ | ?????????????????????????????????????????????????? | | ?????????????????????????????????????????????????? | | ?????????????????????????????????????????????????? | | ?????????????????????????????????????????????????? | | ?????????????????????????????????????????????????? | | ?????????????????????????????????????????????????? | | ?????????????????????????????????????????????????? | | ?????????????????????????????????????????????????? | | ?????????????????????????????????????????????????? | | ?????????????????????????????????????????????????? | | ?????????????????????????????????????????????????? | | ?????????????????????????????????????????????????? | | ?????????????????????????????????????????????????? | | ?????????????????????????????????????????????????? | | ?????????????????????????????????????????????????? | | ?????????????????????????????????????????????????? | | ?????????????????????????????????????????????????? | | ?????????????????????????????????????????????????? | | ?????????????????????????????????????????????????? | | ??????????????????????????????????? ?????????????? | | ??????????????????????????????????? #???????????? | | ??????????????????????????????????? #???????????? | | ??????????????????#############??? #???????????? | | ??????????????????+ / !#??? #???????????? | | ??????????????????# * #??? #???????????? | | ??????????????????# @ #??? #???????????? | | ??????????????????# """g % / #??? #???????????? | | ??????????????????# """% / #??? #???????????? | | ??????????????????# """ % #??? #???????????? | | ??????????????????# %*%] ### #???????????? | | ????????????# ###r########## #???????????? | | ????????????# #???????????? | | ????????????+ T #???????????? | | ????????????# #???????????? | | ????????????# ############## #???????????? | | ????????????## #?????????????## ##???????????? | | ?????????????# ???????????????# #????????????? | | ?????????????# ????????????????# #????????????? | | ?????????????# ????????########## #????????????? | | ?????????????#?????????#!= # #????????????? | | ???????????????????????#%"S # #????????????? | | ???????????????????????#=""" # #????????????? | | ???????????????????????# "" # #????????????? | | ???????????????????????# # #????????????? | | ???????????????????????# """ # #????????????? | | ???????????????????????# """ + ###########??? | | ???????????????????????# """ # # #??? | | ???????????????????????# # # #??? | | ??????????????????????########### # #??? | | ??????????????????????# ] # # #??? | +----------------------------------------------------+ Best States ------------- Heat Dissipation 63 Energy Generation 14 Energy Capacity 250 Matter Stores 300 Matter Capacity 300 Sight Range 16 Terrain Scan Density 10 Evasion (%) 63 Offensive Hacking 10 Item Schematics ----------------- None Robot Schematics ------------------ None Fabricated ------------ Nothing Alien Tech Used ----------------- None Achievements -------------- None Challenges ------------ None Game ------ Seed TargetHeatFemtoactuators Manual? 0 Play Time 00:09:40 Cumulative 145.8 hours Start 2024.05.02 @ 17:14:24 End 2024.05.02 @ 17:21:28 Sessions 1 Manual Loads 0 Difficulty Rogue Special Mode None Game No. 285 Rogue 285 Adventurer 0 Explorer 0 Win Type - Total 0 Types 0/0/0/0/0/0/0/0/0 Lore% 36 Gallery% 49 Achievement% 36 Wizard Run 0 Options --------- Layout 1 ASCII 0 Keyboard 0 Movement Mouse Keybinds 0 Fullscreen 1 Font 24/Smallcaps Map View 50x40 Zoom Use 0% Tactical HUD 1 Map Filters NONE Filters NONE Steam 1 RUN: 69759083-96a6-4d57-ab4c-cc512b91e6c4